bitfinex/quotes_BTCUSD_20241123
["timestamp","ask_amount","ask_price","bid_price","bid_amount"]
[1732340475112,0.0070091,98121.0,98104.0,0.12976274]
[1732340475335,0.0070091,98121.0,98108.0,0.0794]
[1732340475596,0.0070091,98121.0,98110.0,0.05098858]
[1732340475818,0.0070091,98121.0,98113.0,0.1024]
[1732340476052,0.0070091,98121.0,98115.0,0.05061504]
[1732340476280,0.0070091,98121.0,98116.0,0.023]
[1732340477207,0.0070091,98121.0,98118.0,0.173]
[1732340477436,0.0070091,98121.0,98119.0,0.05087318]
[1732340477646,0.0070091,98121.0,98120.0,0.023]
[1732340477858,0.0070091,98121.0,98120.0,0.173]
[1732340478078,0.0070091,98121.0,98120.0,1.14435]
[1732340478776,0.0070091,98121.0,98120.0,1.1953306]
[1732340479213,0.0060846,98140.0,98120.0,1.1953306]
[1732340479453,0.0060846,98140.0,98123.0,0.05020479]
[1732340479669,0.0804,98153.0,98125.0,0.0503723]
[1732340479893,0.0804,98153.0,98127.0,0.05041746]
[1732340480117,0.18442137,98155.0,98123.0,0.05020479]
[1732340480330,0.18442137,98155.0,98123.0,0.05122384]
[1732340480557,0.02242137,98168.0,98124.0,0.2326]
[1732340480777,0.02242137,98168.0,98125.0,0.2003723]
[1732340481455,0.1,98170.0,98128.0,0.05074315]
[1732340482159,0.1,98170.0,98131.0,0.05091056]
[1732340482373,0.51734477,98194.0,98131.0,0.05091056]
[1732340482374,0.1,98180.0,98132.0,0.0826]
[1732340482590,0.1,98175.0,98133.0,0.20081645]
[1732340482819,0.1615,98186.0,98133.0,0.20081645]
[1732340483714,0.048,98185.0,98133.0,0.20081645]
[1732340483930,0.51734477,98194.0,98133.0,0.20081645]
[1732340483931,0.51734477,98194.0,98138.0,0.0826]
[1732340484143,0.51734477,98194.0,98141.0,0.0826]
[1732340484352,0.51734477,98194.0,98141.0,0.2326]
[1732340484558,0.51734477,98194.0,98141.0,0.28300165]
[1732340485184,0.51734477,98194.0,98142.0,0.0826]
[1732340485634,0.51734477,98194.0,98143.0,0.0826]
[1732340486085,0.51734477,98194.0,98145.0,0.2326]
[1732340486332,0.0804,98193.0,98146.0,0.0826]
[1732340486827,0.51734477,98194.0,98146.0,0.0826]
[1732340487039,0.048,98193.0,98146.0,0.0826]
[1732340487469,0.51734477,98194.0,98146.0,0.0826]
[1732340489426,0.041,98193.0,98146.0,0.08235177]
[1732340489977,0.51734477,98194.0,98146.0,0.08235177]
[1732340490608,0.048,98193.0,98146.0,0.08235177]
[1732340490821,0.5955,98193.0,98146.0,0.08235177]
[1732340491036,0.2715,98192.0,98147.0,0.0463]
[1732340491251,0.2715,98192.0,98149.0,0.0463]
[1732340491463,1.06484477,98194.0,98150.0,0.0826]
[1732340492092,1.06484477,98194.0,98151.0,0.0463]
[1732340492308,1.06484477,98194.0,98155.0,0.0826]
[1732340492532,0.51183677,98194.0,98156.0,0.0463]
[1732340492740,0.51183677,98194.0,98157.0,0.0826]
[1732340493183,0.51183677,98194.0,98157.0,0.2326]
[1732340493402,0.0008598,98192.0,98157.0,0.2326]
[1732340493817,0.51183677,98194.0,98158.0,0.0826]
[1732340494041,0.0061,98193.0,98158.0,0.0826]
[1732340494260,0.51183677,98194.0,98158.0,0.0826]
[1732340495340,0.51183677,98194.0,98159.0,0.0463]
[1732340496008,0.51183677,98194.0,98160.0,0.0826]
[1732340496226,0.51183677,98194.0,98160.0,0.2326]
[1732340496652,1.05933677,98194.0,98160.0,0.2326]
[1732340497404,1.05933677,98194.0,98161.0,0.1289]
[1732340497618,1.05933677,98194.0,98162.0,0.15]
[1732340499160,1.05933677,98194.0,98162.0,0.2296]
[1732340499404,1.05933677,98194.0,98163.0,0.198]
[1732340499810,0.5475,98193.0,98164.0,0.0796]
[1732340500019,0.5475,98193.0,98164.0,0.2296]
[1732340500227,0.51183677,98194.0,98164.0,0.2296]
[1732340500877,0.51183677,98194.0,98165.0,0.198]
[1732340501258,0.51183677,98194.0,98159.0,0.0796]
[1732340501460,0.51183677,98194.0,98161.0,0.0796]
[1732340501672,0.51183677,98194.0,98162.0,0.048]
[1732340501867,0.50643917,98194.0,98164.0,0.048]
[1732340502065,0.50643917,98194.0,98166.0,0.048]
[1732340502239,0.50643917,98194.0,98169.0,0.1276]
[1732340502484,0.50643917,98194.0,98168.0,0.07477764]
[1732340502685,0.50643917,98194.0,98144.0,0.05014305]
[1732340502883,0.50643917,98194.0,98143.0,0.05040817]
[1732340503113,0.50643917,98194.0,98145.0,0.97127]
[1732340503269,0.50643917,98194.0,98146.0,0.05052921]
[1732340503668,0.50643917,98194.0,98024.0,0.4]
[1732340503669,0.50643917,98194.0,98148.0,0.05012709]
[1732340504141,0.50643917,98194.0,98149.0,0.97126]
[1732340504603,0.50643917,98194.0,98150.0,0.15]
[1732340504807,0.50643917,98194.0,98151.0,0.05055851]
[1732340505065,0.50643917,98194.0,98151.0,1.02180851]
[1732340505287,0.50729827,98194.0,98151.0,1.02180851]
[1732340505506,0.045,98193.0,98152.0,0.15]
[1732340505742,0.045,98193.0,98154.0,0.0796]
[1732340505956,0.89279827,98194.0,98157.0,0.048]
[1732340506187,0.89279827,98194.0,98151.0,0.97125]
[1732340506188,0.89279827,98194.0,98160.0,0.05058252]
[1732340506376,0.89279827,98194.0,98161.0,0.048]
[1732340507062,0.89279827,98194.0,98163.0,0.048]
[1732340507491,0.89279827,98194.0,98165.0,0.048]
[1732340507696,0.89279827,98194.0,98166.0,0.1276]
[1732340507915,0.89279827,98194.0,98167.0,0.048]
[1732340508549,0.89279827,98194.0,98167.0,0.198]
[1732340508792,0.50729827,98194.0,98168.0,0.048]
[1732340510768,0.50729827,98194.0,98170.0,0.048]
[1732340511539,0.50729827,98194.0,98171.0,0.02834976]
[1732340511897,0.24479827,98194.0,98173.0,0.0796]
[1732340512143,0.0791,98204.0,98173.0,0.0796]
[1732340512144,0.0791,98204.0,98174.0,0.15]
[1732340512342,0.0791,98204.0,98175.0,0.048]
[1732340515237,0.0791,98219.0,98178.0,0.15]
[1732340515447,0.0017202,98220.0,98151.0,0.97125]
[1732340515448,0.0017202,98220.0,98181.0,0.1276]
[1732340515639,0.0017202,98220.0,98176.0,0.1276]
[1732340515815,0.0017202,98220.0,98174.0,0.15]
[1732340515816,0.0017202,98220.0,98179.0,0.1276]
[1732340516026,0.0017202,98220.0,98181.0,0.05091545]
[1732340516226,0.0017202,98220.0,98185.0,0.0508959]
[1732340516553,0.0017202,98220.0,98189.0,0.15]
[1732340516908,0.0017202,98220.0,98190.0,0.05099965]
[1732340517120,0.0017202,98220.0,98192.0,0.05042582]
[1732340517328,0.0017202,98220.0,98196.0,0.05052784]
[1732340518361,0.0017202,98220.0,98195.0,0.13041486]
[1732340520616,0.0017202,98220.0,98197.0,0.05018299]
[1732340522823,0.003,98219.0,98197.0,0.05018299]
[1732340523043,0.1,98217.0,98193.0,0.048]
[1732340523259,0.0785,98212.0,98181.0,0.05091545]
[1732340523469,0.1785,98212.0,98181.0,0.05091545]
[1732340523682,0.5475,98211.0,98181.0,0.05091545]
[1732340524539,0.1,98207.0,98181.0,0.05091545]
[1732340524974,0.5475,98211.0,98181.0,0.05091545]
[1732340525418,0.0785,98210.0,98181.0,0.05091545]
[1732340529578,0.5475,98211.0,98181.0,0.05091545]
[1732340529579,0.0785,98208.0,98181.0,0.05091545]
[1732340529791,0.023,98205.0,98181.0,0.05263365]
[1732340530017,0.0785,98204.0,98181.0,0.05263365]
[1732340530506,0.0882,98203.0,98181.0,0.05263365]
[1732340530758,0.0785,98200.0,98181.0,0.05263365]
[1732340530973,0.023,98199.0,98181.0,0.05263365]
[1732340531207,0.023,98197.0,98181.0,0.05263365]
[1732340531887,0.0785,98194.0,98181.0,0.05263365]
[1732340532345,0.023,98193.0,98181.0,0.05263365]
[1732340535279,0.0785,98192.0,98182.0,0.05044046]
[1732340535552,0.023,98187.0,98182.0,0.05044046]
[1732340535818,0.023,98185.0,98182.0,0.05044046]
[1732340537220,0.023,98183.0,98181.0,0.0017182]
[1732340537445,0.0995,98182.0,98181.0,0.0017182]
[1732340537934,0.647,98182.0,98181.0,0.0017182]
[1732340538390,0.65,98182.0,98181.0,0.0017182]
[1732340541775,0.023,98179.0,98157.0,0.15]
[1732340542000,0.023,98177.0,98157.0,0.15]
[1732340542428,0.018,98177.0,98157.0,0.15]
[1732340544478,0.52342161,98181.0,98162.0,0.0781]
[1732340544712,0.52342161,98181.0,98166.0,0.05007873]
[1732340546241,0.52342161,98181.0,98167.0,0.2281]
[1732340546445,0.52342161,98181.0,98168.0,0.0457]
[1732340546687,0.52342161,98181.0,98169.0,0.02049684]
[1732340546916,0.52342161,98181.0,98171.0,0.0504518]
[1732340547391,0.52342161,98181.0,98172.0,0.1238]
[1732340547601,0.52208007,98181.0,98174.0,0.05026538]
[1732340547816,0.52208007,98180.0,98175.0,0.00440699]
[1732340548025,0.36008007,98180.0,98177.0,0.12817775]
[1732340548244,0.03608007,98201.0,98177.0,0.05007775]
[1732340548460,0.03608007,98200.0,98185.0,0.0965959]
[1732340548691,0.03608007,98200.0,98185.0,0.2465959]
[1732340548908,0.03608007,98200.0,98186.0,0.15442051]
[1732340549955,0.03608007,98200.0,98187.0,0.05078833]
[1732340550166,0.03608007,98200.0,98188.0,0.00440498]
[1732340550879,0.03608007,98200.0,98189.0,0.05075596]
[1732340551095,0.03608007,98200.0,98189.0,0.05516071]
[1732340551738,0.03608007,98200.0,98185.0,0.2008959]
[1732340551987,0.03608007,98200.0,98156.0,0.05054517]
[1732340552216,0.03608007,98199.0,98156.0,0.05054517]
[1732340553340,0.03608007,98199.0,98182.0,0.05072479]
[1732340554829,0.03608007,98199.0,98183.0,0.0457]
[1732340555001,0.03608007,98199.0,98184.0,0.05086335]
[1732340555216,0.03608007,98199.0,98184.0,0.20086335]
[1732340556737,0.03608007,98198.0,98184.0,0.20086335]
[1732340557067,0.0148926,98204.0,98184.0,0.20086335]
[1732340558571,0.0148926,98204.0,98185.0,0.05015239]
[1732340561191,0.000859,98207.0,98185.0,0.05015239]
[1732340561399,0.5475,98203.0,98186.0,0.0453]
[1732340561612,0.5475,98203.0,98187.0,0.05047076]
[1732340565816,0.5475,98205.0,98188.0,0.0453]
[1732340566098,0.5475,98205.0,98191.0,0.0453]
[1732340566339,0.5475,98205.0,98192.0,0.0505343]
[1732340566753,0.5475,98205.0,98193.0,0.17049684]
[1732340567034,0.5475,98205.0,98194.0,0.1996]
[1732340567242,0.527279,98205.0,98198.0,0.05063235]
[1732340568428,0.527279,98205.0,98199.0,0.0496]
[1732340568662,0.000859,98207.0,98200.0,0.05064647]
[1732340568880,0.527279,98214.0,98200.0,0.05064647]
[1732340570088,0.527279,98214.0,98200.0,0.20064647]
[1732340571744,0.527279,98214.0,98201.0,0.02049684]
[1732340572003,0.527279,98213.0,98202.0,0.0496]
[1732340572230,0.527279,98212.0,98202.0,0.0496]
[1732340572480,0.527279,98212.0,98203.0,0.2319]
[1732340572925,0.527279,98212.0,98204.0,0.05037813]
[1732340573609,0.527279,98212.0,98203.0,0.05009379]
[1732340577826,0.527279,98211.0,98203.0,0.05009379]
[1732340580839,0.527279,98210.0,98203.0,0.05009379]
[1732340581331,0.365279,98209.0,98203.0,0.05009379]
[1732340581825,0.000859,98212.0,98203.0,0.05009379]
[1732340584191,0.000859,98212.0,98203.0,0.09215118]
[1732340585833,0.000859,98212.0,98203.0,0.24215118]
[1732340586055,0.0148926,98207.0,98203.0,0.09215118]
[1732340587037,0.1066,98205.0,98203.0,0.09215118]
[1732340587261,0.041279,98206.0,98203.0,0.09215118]
[1732340587750,0.0927926,98204.0,98203.0,0.09215118]
[1732340588454,0.0927926,98204.0,98203.0,0.05009379]
[1732340588903,0.0148926,98200.0,98199.0,0.05069375]
[1732340589782,0.0561716,98200.0,98199.0,0.05069375]
[1732340596669,0.0561716,98200.0,98199.0,0.11954578]
[1732340597531,0.0561716,98200.0,98199.0,0.26954578]
[1732340601899,0.0561716,98200.0,98199.0,0.27126378]
[1732340604009,0.041279,98200.0,98199.0,0.27126378]
[1732340604447,0.0561716,98200.0,98199.0,0.27126378]
[1732340607235,0.1625716,98200.0,98199.0,0.27126378]
[1732340607477,0.0561716,98200.0,98199.0,0.27126378]
[1732340608420,0.0561716,98200.0,98199.0,0.08110561]
[1732340615660,0.0561716,98200.0,98199.0,0.27257849]
[1732340617896,0.0561716,98200.0,98199.0,0.05069375]
[1732340626919,0.0561716,98200.0,98199.0,0.05241415]
[1732340631969,0.0561716,98200.0,98199.0,0.07331583]
[1732340634251,0.0561716,98200.0,98197.0,0.05063718]
[1732340634731,0.0561716,98200.0,98196.0,0.05045591]
[1732340634962,0.041279,98199.0,98196.0,0.05045591]
[1732340635733,0.0561716,98199.0,98196.0,0.05045591]
[1732340636666,0.0148926,98197.0,98196.0,0.20045591]
[1732340637851,0.0148926,98197.0,98196.0,0.15917691]
[1732340638082,0.0148926,98197.0,98196.0,0.20045591]
[1732340638307,0.0078926,98197.0,98196.0,0.20045591]
[1732340648538,0.0008604,98296.0,98196.0,0.20045591]
[1732340648774,0.1064,98218.0,98196.0,0.20045591]
[1732340649010,0.1064,98216.0,98196.0,0.20045591]
[1732340649228,1e-08,98219.0,98196.0,0.24074935]
[1732340649456,0.0008604,98296.0,98196.0,0.24246995]
[1732340649913,0.25533005,98190.0,98186.0,0.040528]
[1732340650140,0.19550202,98189.0,98187.0,0.05004677]
[1732340650360,0.0008603,98197.0,98187.0,0.05004677]
[1732340651965,0.0008603,98197.0,98188.0,0.01915987]
[1732340652196,0.0008603,98197.0,98188.0,0.16915987]
[1732340652419,0.0008603,98197.0,98189.0,0.0503966]
[1732340652908,0.0008603,98197.0,98188.0,0.05011498]
[1732340653138,0.0008603,98197.0,98189.0,0.0463]
[1732340653366,0.0008603,98197.0,98190.0,0.05083759]
[1732340653583,0.0008603,98197.0,98192.0,0.05005084]
[1732340653807,0.0008603,98197.0,98193.0,0.0463]
[1732340654724,0.0008603,98197.0,98193.0,0.1963]
[1732340655387,0.0008603,98197.0,98194.0,0.05045301]
[1732340655943,0.5475,98196.0,98194.0,0.05045301]
[1732340657018,0.5475,98196.0,98195.0,0.1244]
[1732340657231,0.5475,98196.0,98195.0,0.29708686]
[1732340657438,0.5475,98219.0,98196.0,0.15]
[1732340657650,0.5475,98219.0,98200.0,0.24598123]
[1732340657872,0.5475,98219.0,98201.0,0.0791]
[1732340658089,0.5475,98219.0,98203.0,0.0791]
[1732340658299,0.5475,98219.0,98204.0,0.0453]
[1732340658989,0.5475,98219.0,98204.0,0.15]
[1732340659202,0.5475,98219.0,98205.0,0.045]
[1732340659420,0.5475,98219.0,98203.0,0.0917029]
[1732340661781,0.5483603,98219.0,98203.0,0.0917029]
[1732340662437,0.5483603,98219.0,98204.0,0.045]
[1732340664342,0.5483603,98219.0,98204.0,0.195]
[1732340664983,0.5475,98218.0,98204.0,0.195]
[1732340666972,0.5475,98218.0,98205.0,0.02632824]
[1732340671670,0.5475,98218.0,98207.0,0.045]
[1732340675390,0.5483603,98218.0,98207.0,0.045]
[1732340677020,0.5475,98217.0,98207.0,0.045]
[1732340680945,0.5475,98217.0,98205.0,0.05050044]
[1732340680946,0.0453,98216.0,98205.0,0.05050044]
[1732340681161,0.1249,98213.0,98205.0,0.05050044]
[1732340681385,0.0453,98210.0,98205.0,0.05050044]
[1732340681683,0.0796,98209.0,98205.0,0.05050044]
[1732340682980,0.45615513,98199.0,98197.0,0.05014623]
[1732340683200,0.45615513,98198.0,98197.0,0.05014623]
[1732340687850,0.45615513,98198.0,98197.0,0.05186683]
[1732340691419,0.45615513,98198.0,98197.0,0.09283426]
[1732340692340,0.13215513,98217.0,98197.0,0.17423426]
[1732340693983,0.13215513,98217.0,98198.0,0.15]
[1732340694680,0.13215513,98217.0,98199.0,0.05008964]
[1732340695162,0.0796,98216.0,98198.0,0.05027788]
[1732340697394,0.07951906,98216.0,98198.0,0.05027788]
[1732340698045,0.13215513,98215.0,98198.0,0.05027788]
[1732340700605,0.13301543,98215.0,98198.0,0.05027788]
[1732340701016,0.13215513,98214.0,98198.0,0.05027788]
[1732340702106,0.13215513,98214.0,98200.0,0.0768]
[1732340702536,0.0784,98213.0,98200.0,0.05044672]
[1732340704097,0.13215513,98212.0,98200.0,0.05044672]
[1732340706936,0.13215513,98211.0,98200.0,0.05044672]
[1732340707208,0.13215513,98211.0,98198.0,0.05027788]
[1732340708557,0.1064,98263.0,98199.0,0.0481]
[1732340708783,0.5475,98237.0,98200.0,0.05044672]
[1732340710395,0.5475,98237.0,98201.0,0.0768]
[1732340711072,0.5475,98237.0,98202.0,0.20011235]
[1732340711529,0.1268,98236.0,98202.0,0.20011235]
[1732340711736,0.0484,98235.0,98202.0,0.20011235]
[1732340712963,0.5475,98234.0,98202.0,0.05031283]
[1732340713180,0.0484,98233.0,98202.0,0.05031283]
[1732340714803,0.0484,98231.0,98202.0,0.20031283]
[1732340715913,0.5475,98230.0,98202.0,0.20031283]
[1732340717423,0.0484,98229.0,98202.0,0.20031283]
[1732340717615,0.0484,98227.0,98202.0,0.20031283]
[1732340719009,0.5475,98226.0,98202.0,0.20031283]
[1732340721438,0.5475,98226.0,98203.0,0.0488]
[1732340721650,0.5475,98226.0,98204.0,0.05081641]
[1732340726925,0.5475,98226.0,98204.0,0.21996941]
[1732340727345,0.5475,98226.0,98205.0,0.019153]
[1732340729791,0.5475,98226.0,98206.0,0.0824]
[1732340730215,0.5475,98226.0,98206.0,0.2324]
[1732340731721,0.5475,98226.0,98204.0,0.05081641]
[1732340735239,0.5475,98226.0,98205.0,0.0488]
[1732340735682,0.5475,98226.0,98205.0,0.1988]
[1732340737242,0.5475,98227.0,98205.0,0.1988]
[1732340738339,0.61469,98227.0,98205.0,0.1988]
[1732340739204,0.5475,98227.0,98205.0,0.1988]
[1732340747770,0.5475,98227.0,98206.0,0.0496]
[1732340752730,0.5483603,98227.0,98206.0,0.0496]
[1732340754036,0.5483603,98227.0,98207.0,0.0757]
[1732340754245,0.5483603,98227.0,98208.0,0.1996]
[1732340755131,0.5475,98226.0,98208.0,0.1996]
[1732340756255,0.5475,98226.0,98208.0,0.15]
[1732340756494,0.5475,98226.0,98207.0,0.02538832]
[1732340758020,0.0479,98225.0,98207.0,0.02538832]
[1732340758253,0.0479,98225.0,98207.0,0.03344706]
[1732340758472,0.5475,98226.0,98208.0,0.00805874]
[1732340759431,0.5475,98226.0,98209.0,0.0476]
[1732340759856,0.5475,98226.0,98210.0,0.00805874]
[1732340768549,0.048,98225.0,98210.0,0.00805874]
[1732340768777,0.5475,98224.0,98210.0,0.00805874]
[1732340768995,0.5475,98224.0,98211.0,0.048]
[1732340769408,0.5475,98224.0,98148.0,0.6264399]
[1732340769661,0.5475,98224.0,98189.0,0.00101827]
[1732340769879,0.5475,98224.0,98197.0,0.0037206]
[1732340770099,0.5475,98224.0,98197.0,0.0017206]
[1732340771251,0.36753203,98224.0,98197.0,0.0037206]
[1732340771535,0.36753203,98224.0,98197.0,0.0017206]
[1732340771769,0.36753203,98224.0,98198.0,0.0027386]
[1732340772249,0.36753203,98224.0,98198.0,0.0017204]
[1732340772494,0.36753203,98224.0,98206.0,0.048]
[1732340772735,0.36753203,98224.0,98206.0,0.198]
[1732340773201,0.36753203,98223.0,98206.0,0.198]
[1732340774644,0.36753203,98223.0,98207.0,0.1254]
[1732340775343,0.36753203,98223.0,98208.0,0.1254]
[1732340775581,0.36753203,98222.0,98209.0,0.15]
[1732340775824,0.36753203,98222.0,98210.0,0.048]
[1732340776065,0.36753203,98222.0,98211.0,0.0774]
[1732340776314,0.36753203,98222.0,98212.0,0.048]
[1732340776543,0.36753203,98221.0,98212.0,0.198]
[1732340777173,0.36753203,98221.0,98213.0,0.01441416]
[1732340778259,0.36753203,98220.0,98213.0,0.01441416]
[1732340778693,0.36753203,98220.0,98214.0,0.1254]
[1732340778999,0.36753203,98220.0,98215.0,0.16441416]
[1732340780947,0.36753203,98220.0,98216.0,0.05086774]
[1732340781413,0.36753203,98220.0,98218.0,0.05047284]
[1732340781863,0.36753203,98220.0,98219.0,0.01441416]
[1732340785160,0.36753203,98225.0,98219.0,0.01441416]
[1732340786057,0.0463,98224.0,98219.0,0.01441416]
[1732340786988,0.36753203,98225.0,98219.0,0.01441416]
[1732340788336,0.36753203,98224.0,98219.0,0.01441416]
[1732340790486,0.36753203,98224.0,98219.0,0.2053529]
[1732340790704,0.36839223,98224.0,98219.0,0.16441416]
[1732340791149,0.36753203,98223.0,98219.0,0.16441416]
[1732340791578,0.36753203,98223.0,98219.0,0.01441416]
[1732340791995,0.36753203,98223.0,98220.0,0.02750515]
[1732340792418,0.36753203,98223.0,98221.0,0.0186449]
[1732340794293,0.36753203,98222.0,98221.0,0.0186449]
[1732340797115,0.49523203,98222.0,98221.0,0.0186449]
[1732340799841,0.36753203,98222.0,98219.0,0.04151002]
[1732340800046,0.1281,98221.0,98219.0,0.04151002]
[1732340800262,0.0784,98219.0,98217.0,0.05014056]
[1732340800492,0.0497,98218.0,98217.0,0.05014056]
[1732340800747,0.1281,98218.0,98217.0,0.05014056]
[1732340801898,0.0784,98221.0,98213.0,0.05085853]
[1732340802085,0.1281,98219.0,98213.0,0.05085853]
[1732340802350,0.1281,98218.0,98215.0,0.05007987]
[1732340802611,0.0497,98217.0,98215.0,0.05007987]
[1732340802864,0.0497,98217.0,98216.0,0.00426222]
[1732340803321,0.41723203,98217.0,98216.0,0.05512996]
[1732340806471,0.36753203,98217.0,98216.0,0.05512996]
[1732340807200,0.36753203,98217.0,98216.0,0.09596613]
[1732340807655,0.36753203,98217.0,98216.0,0.12058883]
[1732340808098,0.36753203,98217.0,98216.0,0.26968156]
[1732340808512,0.36753203,98217.0,98216.0,0.22884539]
[1732340809142,0.36753203,98217.0,98216.0,0.07884539]
[1732340810236,0.36753203,98217.0,98216.0,0.26893333]
[1732340813758,0.36753203,98217.0,98216.0,0.09431063]
[1732340814228,0.21938748,98217.0,98216.0,0.09431063]
[1732340814432,0.21938748,98217.0,98216.0,0.09603123]
[1732340814601,0.22024778,98217.0,98216.0,0.09603123]
[1732340816984,0.22024778,98217.0,98216.0,0.20086774]
[1732340817267,0.22024778,98217.0,98216.0,0.20782633]
[1732340818107,0.22024778,98217.0,98216.0,0.05782633]
[1732340819638,0.22024778,98217.0,98206.0,0.15]
[1732340819639,0.22024778,98217.0,98208.0,0.05046469]
[1732340819844,0.22024778,98217.0,98174.0,0.0508223]
[1732340820061,0.21938748,98216.0,98176.0,0.08]
[1732340820280,0.21938748,98216.0,98177.0,0.08101816]
[1732340820708,0.0008603,98217.0,98179.0,0.08]
[1732340820918,0.0008603,98217.0,98180.0,0.023]
[1732340821141,0.0008603,98217.0,98181.0,0.08]
[1732340821362,0.0008603,98217.0,98180.0,0.023]
[1732340821565,0.0008603,98217.0,98181.0,0.08]
[1732340822025,0.0008603,98217.0,98183.0,0.1307814]
[1732340822254,0.0008603,98217.0,98186.0,0.023]
[1732340822454,0.0008603,98217.0,98187.0,0.08101808]
[1732340822562,0.0008603,98217.0,98189.0,0.023]
[1732340822767,0.0008603,98217.0,98191.0,0.15]
[1732340822990,0.0008603,98217.0,98194.0,0.173]
[1732340823203,0.0008603,98217.0,98196.0,0.074]
[1732340823408,0.0008603,98217.0,98198.0,0.05010677]
[1732340823631,0.0008603,98217.0,98199.0,0.00205984]
[1732340823843,0.0008603,98217.0,98200.0,0.05035894]
[1732340824057,0.0008603,98217.0,98201.0,0.00205984]
[1732340824286,0.0008603,98217.0,98202.0,0.05098297]
[1732340824506,0.0008603,98217.0,98204.0,0.05009729]
[1732340824776,0.0008603,98217.0,98205.0,0.00205984]
[1732340826057,0.0008603,98217.0,98206.0,0.05088858]
[1732340826267,0.0008603,98217.0,98207.0,0.00205984]
[1732340826677,0.0008603,98217.0,98208.0,0.05000794]
[1732340826899,0.0008603,98217.0,98208.0,0.05206778]
[1732340827119,0.0008603,98217.0,98209.0,0.023]
[1732340828183,0.0008603,98217.0,98210.0,0.05074712]
[1732340828415,1e-08,98250.0,98210.0,0.05074712]
[1732340828673,0.5475,98249.0,98210.0,0.05074712]
[1732340828882,0.00101815,98248.0,98210.0,0.05074712]
[1732340831082,0.0756,98245.0,98207.0,0.05087345]
[1732340831295,0.0484,98241.0,98207.0,0.05087345]
[1732340831538,0.0484,98237.0,98207.0,0.05087345]
[1732340831735,0.04941815,98236.0,98207.0,0.05087345]
[1732340833281,0.5959,98235.0,98207.0,0.05087345]
[1732340833513,0.00101815,98234.0,98207.0,0.05087345]
[1732340833956,0.00101815,98234.0,98208.0,0.08]
[1732340834175,0.00101815,98234.0,98208.0,0.23]
[1732340835717,0.00101815,98234.0,98209.0,0.05013831]
[1732340836131,0.5475,98233.0,98209.0,0.20013831]
[1732340836356,0.00101815,98232.0,98209.0,0.20013831]
[1732340838730,0.00101815,98232.0,98210.0,0.05053459]
[1732340839217,0.5475,98231.0,98210.0,0.05053459]
[1732340839445,0.00101815,98230.0,98210.0,0.05053459]
[1732340839652,0.5475,98229.0,98211.0,0.040516]
[1732340839868,0.00101815,98228.0,98211.0,0.040516]
[1732340840561,0.049,98226.0,98212.0,0.05090343]
[1732340840774,0.049,98224.0,98212.0,0.05090343]
[1732340840988,0.00101815,98223.0,98212.0,0.05090343]
[1732340845149,0.5475,98222.0,98212.0,0.05090343]
[1732340845380,0.00101815,98221.0,98212.0,0.05090343]
[1732340845617,0.5475,98222.0,98212.0,0.05090343]
[1732340846329,0.5475,98222.0,98212.0,0.09142343]
[1732340847173,0.5475,98222.0,98212.0,0.24244156]
[1732340847383,0.5475,98222.0,98214.0,0.05072476]
[1732340847589,0.5475,98222.0,98215.0,0.00101808]
[1732340847724,0.5475,98222.0,98216.0,0.05049209]
[1732340848354,0.0017206,98232.0,98216.0,0.05049209]
[1732340848355,0.5475,98231.0,98216.0,0.05049209]
[1732340848554,0.0017206,98232.0,98216.0,0.05049209]
[1732340848755,0.0017206,98232.0,98212.0,0.19052]
[1732340848756,0.00273875,98232.0,98213.0,0.05000273]
[1732340848922,0.00101816,98260.0,98213.0,0.05000273]
[1732340850300,0.00101816,98260.0,98214.0,0.047]
[1732340850515,0.1308,98259.0,98213.0,0.15]
[1732340850763,0.0816,98254.0,98211.0,0.05046763]
[1732340850968,0.0492,98253.0,98211.0,0.05046763]
[1732340851173,0.0492,98251.0,98211.0,0.05046763]
[1732340851424,0.1308,98248.0,98211.0,0.05046763]
[1732340851641,0.0492,98247.0,98211.0,0.05046763]
[1732340852101,0.0816,98246.0,98211.0,0.05046763]
[1732340852317,0.0017206,98232.0,98211.0,0.05046763]
[1732340853401,0.0017206,98232.0,98212.0,0.023]
[1732340853612,0.0017206,98232.0,98213.0,0.125]
[1732340854042,0.0017206,98232.0,98214.0,0.15]
[1732340854519,0.0017206,98232.0,98215.0,0.05061985]
[1732340857269,0.0017206,98232.0,98216.0,0.040515]
[1732340857476,0.0017206,98232.0,98217.0,0.05030426]
[1732340861201,0.0017206,98232.0,98219.0,0.05093606]
[1732340861408,0.0017206,98232.0,98220.0,0.09621282]
[1732340861628,0.0017206,98232.0,98222.0,0.20015477]
[1732340861842,0.0017206,98232.0,98223.0,0.00101798]
[1732340862051,0.0017206,98232.0,98223.0,0.04359958]
[1732340862257,0.0017206,98232.0,98224.0,0.05079421]
[1732340866776,0.0017206,98232.0,98223.0,0.02484939]
[1732340866777,0.0017206,98232.0,98227.0,0.045]
[1732340866986,0.0017206,98232.0,98229.0,0.09883953]
[1732340867242,0.0017206,98232.0,98231.0,0.05089223]
[1732340867452,0.0017206,98232.0,98231.0,0.00101784]
[1732340867899,0.0017206,98232.0,98231.0,0.05191007]
[1732340868156,0.0017206,98232.0,98231.0,0.20191007]
[1732340868373,0.0017206,98232.0,98231.0,0.22491007]
[1732340868612,0.0017206,98232.0,98231.0,0.22389223]
[1732340869251,0.0017206,98232.0,98231.0,0.07389223]
[1732340869679,0.0017206,98247.0,98237.0,0.0485]
[1732340869897,0.0017206,98247.0,98239.0,0.0485]
[1732340870101,0.0017206,98247.0,98240.0,0.00101774]
[1732340870515,0.0017206,98247.0,98242.0,0.00446509]
[1732340870738,0.0017206,98247.0,98243.0,0.05022089]
[1732340871360,0.0017206,98247.0,98244.0,0.023]
[1732340872646,0.0017206,98247.0,98244.0,0.07389691]
[1732340872853,0.0017206,98247.0,98244.0,0.023]
[1732340873533,0.09639501,98292.0,98246.0,0.15]
[1732340873534,0.09026199,98292.0,98246.0,0.15]
[1732340873710,0.05595149,98293.0,98246.0,0.15]
[1732340874366,0.05509199,98286.0,98246.0,0.15]
[1732340874628,0.05509199,98282.0,98241.0,0.05008057]
[1732340875125,0.04722099,98280.0,98241.0,0.20008057]
[1732340875596,0.0017206,98247.0,98241.0,0.20008057]
[1732340876306,0.0017206,98247.0,98241.0,0.05008057]
[1732340876773,0.0017206,98247.0,98241.0,0.20008057]